fUSD/lending_fUSD_20250522
["ID","MTS","AMOUNT","RATE_DAILY","PERIOD"]
[362040758,1747945860369,-300.01725609,0.00033698,5]
[362040759,1747945860378,-420.0,0.00033698,5]
[362040760,1747945860387,-777.93,0.00033698,5]
[362040761,1747945860397,-422.9,0.00033698,5]
[362040762,1747945860407,-420.0,0.00033698,5]
[362040763,1747945860416,-420.0,0.00033698,5]
[362040764,1747945860426,-420.0,0.00033698,5]
[362040765,1747945860436,-420.0,0.00033698,5]
[362040766,1747945860446,-457.06,0.00033698,5]
[362040767,1747945860455,-497.27,0.00033698,5]
[362040768,1747945860465,-234.77784173,0.00033698,5]
[362040769,1747945860474,-500.96,0.00033698,5]
[362040770,1747945860484,-442.59,0.00033698,5]
[362040771,1747945860494,-434.74,0.00033698,5]
[362040772,1747945860503,-4379.99,0.00033698,2]
[362040773,1747945860512,-420.0,0.00033698,5]
[362040774,1747945860522,-420.0,0.00033698,5]
[362040775,1747945860531,-420.0,0.00033698,5]
[362040776,1747945860541,-420.0,0.00033698,5]
[362040777,1747945860551,-420.0,0.00033698,5]
[362040778,1747945860560,-420.0,0.00033698,5]
[362040779,1747945860570,-420.0,0.00033698,5]
[362040780,1747945860579,-151.556145,0.00033698,5]
[362040781,1747945860589,-786.88,0.00033698,5]
[362040782,1747945860598,-420.0,0.00033698,5]
[362040783,1747945860608,-244.63955384,0.00033698,5]
[362040784,1747945860617,-420.0,0.00033698,5]
[362040785,1747945860626,-420.0,0.00033698,5]
[362040786,1747945860635,-199.61,0.00033698,5]
[362040787,1747945860645,-420.0,0.00033698,5]
[362040788,1747945860655,-420.0,0.00033698,5]
[362040789,1747945860665,-451.06,0.00033698,5]
[362040790,1747945860674,-420.0,0.00033698,5]
[362040791,1747945860684,-461.38,0.00033698,5]
[362040792,1747945860693,-420.0,0.00033698,5]
[362040793,1747945860703,-420.0,0.00033698,5]
[362040794,1747945860712,-420.0,0.00033698,5]
[362040795,1747945860721,-2121.83358,0.0003379,2]
[362040796,1747945860731,-544.69,0.000338,2]
[362040797,1747945860740,-459.93,0.00033821,5]
[362040798,1747945860751,-420.0,0.00033821,5]
[362040799,1747945860761,-420.0,0.00033821,5]
[362040800,1747945860770,-420.0,0.00033821,5]
[362040801,1747945860780,-420.0,0.00033821,5]
[362040802,1747945860791,-503.73,0.00033821,5]
[362040803,1747945860801,-707.25,0.00033821,5]
[362040804,1747945860810,-420.0,0.00033821,5]
[362040805,1747945860819,-420.0,0.00033821,5]
[362040806,1747945860830,-443.48,0.00033821,5]
[362040807,1747945860840,-423.35,0.00033821,5]
[362040808,1747945860849,-420.0,0.00033821,5]
[362040809,1747945860859,-420.0,0.00033821,5]
[362040810,1747945860868,-420.0,0.00033821,5]
[362040811,1747945860877,-160.69544415,0.00033821,5]
[362040812,1747945860886,-420.0,0.00033821,5]
[362040813,1747945860896,-420.0,0.00033821,5]
[362040814,1747945860906,-420.0,0.00033821,5]
[362040815,1747945860917,-420.0,0.00033821,5]
[362040816,1747945860926,-487.88,0.00033821,5]
[362040817,1747945860938,-420.0,0.00033821,5]
[362040818,1747945860947,-534.3,0.00033821,5]
[362040819,1747945860958,-420.0,0.00033821,5]
[362040820,1747945860968,-420.0,0.00033821,5]
[362040821,1747945860979,-420.0,0.00033821,5]
[362040822,1747945860989,-420.0,0.00033821,5]
[362040823,1747945861000,-420.0,0.00033821,5]
[362040824,1747945861010,-420.0,0.00033821,5]
[362040825,1747945861021,-420.0,0.00033821,5]
[362040826,1747945861032,-420.0,0.00033821,5]
[362040827,1747945861041,-420.0,0.00033821,5]
[362040828,1747945861051,-420.0,0.00033821,5]
[362040829,1747945861061,-420.0,0.00033821,5]
[362040830,1747945861071,-420.0,0.00033821,5]
[362040831,1747945861081,-503.32,0.00033821,5]
[362040832,1747945861091,-420.0,0.00033821,5]
[362040833,1747945861101,-420.0,0.00033821,5]
[362040834,1747945861112,-221.92025425,0.00033821,5]
[362040835,1747945861122,-303.37841323,0.00033918,2]
[362040836,1747945861134,-420.0,0.00033918,5]
[362040837,1747945861147,-420.0,0.00033918,5]
[362040838,1747945861157,-420.0,0.00033918,5]
[362040839,1747945861167,-420.0,0.00033918,5]
[362040840,1747945861176,-420.0,0.00033918,5]
[362040841,1747945861185,-420.0,0.00033918,5]
[362040842,1747945861195,-420.0,0.00033918,5]
[362040843,1747945861204,-420.0,0.00033918,5]
[362040844,1747945861214,-420.0,0.00033918,5]
[362040845,1747945861223,-420.0,0.00033918,5]
[362040846,1747945861233,-508.7,0.00033918,5]
[362040847,1747945861242,-420.0,0.00033918,5]
[362040848,1747945861252,-420.0,0.00033918,5]
[362040849,1747945861262,-420.0,0.00033918,5]
[362040850,1747945861272,-895.22,0.00033918,5]
[362040851,1747945861281,-438.16310267,0.00033918,5]
[362040852,1747945861291,-420.0,0.00033918,5]
[362040853,1747945861300,-420.0,0.00033918,5]
[362040854,1747945861310,-420.0,0.00033918,5]
[362040855,1747945861319,-420.0,0.00033918,5]
[362040856,1747945861329,-420.0,0.00033918,5]
[362040857,1747945861338,-420.0,0.00033918,5]
[362040858,1747945861348,-420.0,0.00033918,5]
[362040859,1747945861357,-420.0,0.00033918,5]
[362040860,1747945861367,-431.45,0.00033918,5]
[362040861,1747945861376,-420.0,0.00033918,5]
[362040862,1747945861386,-634.71,0.00033918,5]
[362040863,1747945861396,-420.0,0.00033918,5]
[362040864,1747945861406,-420.0,0.00033918,5]
[362040865,1747945861416,-442.14,0.00033918,5]
[362040866,1747945861426,-497.63,0.00033918,5]
[362040867,1747945861436,-420.0,0.00033918,5]
[362040868,1747945861446,-420.0,0.00033918,5]
[362040869,1747945861455,-420.0,0.00033918,5]
[362040870,1747945861465,-436.3,0.00033918,5]
[362040871,1747945861475,-420.0,0.00033918,5]
[362040872,1747945861484,-1103.54,0.00033918,5]
[362040873,1747945861494,-420.0,0.00033918,5]
[362040874,1747945861504,-420.0,0.00033918,5]
[362040875,1747945861516,-420.0,0.00033918,5]
[362040876,1747945861526,-420.0,0.00033918,5]
[362040877,1747945861537,-420.0,0.00033918,5]
[362040878,1747945861547,-456.47,0.00033918,5]
[362040879,1747945861559,-420.0,0.00033918,5]
[362040880,1747945861571,-420.0,0.00033918,5]
[362040881,1747945861581,-527.22,0.00033918,5]
[362040882,1747945861592,-420.0,0.00033918,5]
[362040883,1747945861604,-420.0,0.00033918,5]
[362040884,1747945861614,-13843.06,0.00033918,5]
[362040885,1747945861624,-420.0,0.00033918,5]
[362040886,1747945861633,-420.0,0.00033918,5]
[362040887,1747945861643,-717.53,0.00033918,5]
[362040888,1747945861654,-480.39,0.00033918,5]
[362040889,1747945861665,-513.68714744,0.00033918,5]
[362040890,1747945861676,-659.59,0.00033918,5]
[362040891,1747945861685,-420.0,0.00033918,5]
[362040892,1747945861695,-420.0,0.00033918,5]
[362040893,1747945861705,-420.0,0.00033918,5]
[362040894,1747945861714,-546.87,0.00033918,5]
[362040895,1747945861724,-420.0,0.00033918,5]
[362040896,1747945861733,-420.0,0.00033918,5]
[362040897,1747945861743,-1420.85,0.00033918,5]
[362040898,1747945861755,-420.0,0.00033918,5]
[362040899,1747945861765,-420.0,0.00033918,5]
[362040900,1747945861775,-420.0,0.00033918,5]
[362040901,1747945861785,-420.0,0.00033918,5]
[362040902,1747945861796,-420.0,0.00033918,5]
[362040903,1747945861806,-476.5,0.00033918,5]
[362040904,1747945861816,-920.22,0.00033918,5]
[362040905,1747945861825,-435.33,0.00033918,5]
[362040906,1747945861838,-420.0,0.00033928,5]
[362040907,1747945861849,-534.3298677,0.00033928,5]
[362040908,1747945861860,-420.0,0.00033928,5]
[362040909,1747945861870,-420.0,0.00033928,5]
[362040910,1747945861880,-420.0,0.00033928,5]
[362040911,1747945861891,-420.0,0.00033928,5]
[362040912,1747945861900,-420.0,0.00033928,5]
[362040913,1747945861909,-420.0,0.00033928,5]
[362040914,1747945861919,-334.67180379,0.00033928,5]
[362040915,1747945861970,-85.32819621,0.00033928,5]
[362040916,1747945861980,-250.0,0.00033928,5]
[362040917,1747945861990,-284.67180379,0.00033928,5]
[362040919,1747946085647,299.19,0.00013699,2]
[362040920,1747946750152,-299.19,0.00020187,2]
[362040921,1747946750174,-200.0,0.00022206,2]
[362040922,1747946750196,-299.19,0.00026676,2]
[362040923,1747946750218,-289.42229683,0.00028262,2]
[362040924,1747946750240,-319.40053888,0.00029479,2]
[362040925,1747946754350,-180.59946112,0.00029479,2]
[362040926,1747946754374,-359.66071604,0.00030249,2]
[362040927,1747946813103,-116.93928396,0.00030249,2]
[362040928,1747946813128,-398.20284602,0.00030806,2]
[362040929,1747946840157,-297.887813,0.00030806,2]
[362040930,1747946843095,-148.81143138,0.00030806,2]
[362040931,1747946843121,-19.23943315,0.00031759,2]
[362040932,1747946847085,-230.83137285,0.00031759,2]
[362040933,1747946847109,-153.17,0.00031841,2]
[362040934,1747946847133,-153.17,0.00031857,2]
[362040935,1747946847158,-153.17,0.00031873,2]
[362040936,1747946847183,-153.17,0.00031889,2]
[362040937,1747946847207,-153.17,0.00031905,2]
[362040938,1747946847230,-153.17,0.00031921,2]
[362040939,1747946847265,-153.17,0.00031937,2]
[362040940,1747946847296,-153.17,0.00031953,2]
[362040941,1747946847323,-160.51,0.00031953,2]
[362040942,1747946847350,-153.17,0.00031969,2]
[362040943,1747946847376,-1000.0,0.00031972,2]
[362040944,1747946847403,-153.17,0.00031985,2]
[362040945,1747946847429,-153.17,0.00032001,2]
[362040946,1747946847454,-150.0,0.00032023,7]
[362040947,1747946847479,-180.01,0.00032112,2]
[362040948,1747946847505,-150.61,0.00032351,2]
[362040949,1747946847531,-207.4,0.00032495,2]
[362040950,1747946847555,-6710.68257614,0.000325,5]
[362040951,1747946847580,-476.6,0.00032513,2]
[362040952,1747946847605,-199.54516432,0.00032514,2]
[362040957,1747946937920,250.0,0.00015,2]
[362040962,1747946974105,-300.0,0.00017,2]
[362040963,1747946974130,-350.0,0.00019,2]
[362040964,1747946974150,-400.0,0.00021,2]
[362040965,1747946974173,-450.0,0.00023,2]
[362040980,1747947031694,-1192.92,0.00032355,2]
[362040981,1747947031705,-2845.0768576,0.00032394,2]
[362040982,1747947035585,-4439.5488,0.00032394,2]
[362040983,1747947035598,-1552.0,0.00032394,2]
[362041161,1747947037630,-409.32535271,0.00032394,2]
[362041183,1747947037853,-164.58898969,0.00032394,2]
[362041185,1747947037863,-1122.436483,0.0003278,30]
[362041187,1747947037872,-420.0,0.00032876,5]
[362041189,1747947037881,-420.0,0.00032876,5]
[362041191,1747947037891,-420.0,0.00032876,5]
[362041193,1747947037900,-420.0,0.00032876,5]
[362041195,1747947037910,-420.0,0.00032876,5]
[362041196,1747947037919,-420.0,0.00032876,5]
[362041199,1747947037933,-420.0,0.00032876,5]
[362041201,1747947037942,-420.0,0.00032876,5]
[362041203,1747947037952,-420.0,0.00032876,5]
[362041205,1747947037961,-420.0,0.00032876,5]
[362041207,1747947037971,-420.0,0.00032876,5]
[362041209,1747947037981,-420.0,0.00032876,5]
[362041211,1747947037990,-287.08134927,0.00032876,5]
[362041213,1747947037999,-420.0,0.00032876,5]
[362041214,1747947038008,-420.0,0.00032876,5]
[362041217,1747947038018,-420.0,0.00032876,5]
[362041218,1747947038027,-420.0,0.00032876,5]
[362041220,1747947038037,-420.0,0.00032876,5]
[362041222,1747947038047,-420.0,0.00032876,5]
[362041224,1747947038057,-420.0,0.00032876,5]
[362041227,1747947038066,-420.0,0.00032876,5]
[362041228,1747947038076,-420.0,0.00032876,5]
[362041230,1747947038085,-420.0,0.00032876,5]
[362041232,1747947038094,-420.0,0.00032876,5]
[362041234,1747947038104,-420.0,0.00032876,5]
[362041236,1747947038113,-420.0,0.00032876,5]
[362041238,1747947038122,-420.0,0.00032876,5]
[362041240,1747947038133,-420.0,0.00032876,5]
[362041242,1747947038142,-420.0,0.00032876,5]
[362041244,1747947038152,-420.0,0.00032876,5]
[362041246,1747947038162,-420.0,0.00032876,5]
[362041248,1747947038172,-420.0,0.00032876,5]
[362041250,1747947038182,-420.0,0.00032876,5]
[362041252,1747947038191,-420.0,0.00032876,5]
[362041254,1747947038202,-420.0,0.00032876,5]
[362041256,1747947038213,-420.0,0.00032876,5]
[362041258,1747947038223,-420.0,0.00032876,5]
[362041260,1747947038232,-420.0,0.00032876,5]
[362041262,1747947038242,-420.0,0.00032876,5]
[362041264,1747947038251,-78.49799046,0.00032876,5]
[362041416,1747947039713,-341.50200954,0.00032876,5]
[362041419,1747947039723,-420.0,0.00032876,5]
[362041421,1747947039732,-420.0,0.00032876,5]
[362041422,1747947039741,-145.86618938,0.00032876,5]
[362041425,1747947039768,-274.13381062,0.00032876,5]
[362041427,1747947039777,-122.08118938,0.00032876,5]
[362041433,1747947039824,-297.91881062,0.00032876,5]
[362041435,1747947039833,-420.0,0.00032876,5]
[362041437,1747947039843,-420.0,0.00032876,5]
[362041439,1747947039853,-420.0,0.00032876,5]
[362041441,1747947039862,-420.0,0.00032876,5]
[362041443,1747947039871,-420.0,0.00032876,5]
[362041444,1747947039880,-420.0,0.00032876,5]
[362041446,1747947039890,-420.0,0.00032876,5]
[362041448,1747947039899,-420.0,0.00032876,5]
[362041450,1747947039909,-420.0,0.00032876,5]
[362041452,1747947039918,-420.0,0.00032876,5]
[362041454,1747947039927,-420.0,0.00032876,5]
[362041456,1747947039936,-420.0,0.00032876,5]
[362041458,1747947039947,-420.0,0.00032876,5]
[362041460,1747947039956,-420.0,0.00032876,5]
[362041462,1747947039966,-448.63,0.00032876,5]
[362041464,1747947039975,-420.0,0.00032876,5]
[362041466,1747947039984,-420.0,0.00032876,5]
[362041468,1747947039994,-420.0,0.00032876,5]
[362041470,1747947040003,-420.0,0.00032876,5]
[362041472,1747947040012,-420.0,0.00032876,5]
[362041474,1747947040021,-420.0,0.00032876,5]
[362041476,1747947040031,-420.0,0.00032876,5]
[362041478,1747947040040,-636.06,0.00032876,5]
[362041480,1747947040049,-420.0,0.00032876,5]
[362041481,1747947040059,-420.0,0.00032876,5]
[362041483,1747947040068,-420.0,0.00032876,5]
[362041485,1747947040077,-420.0,0.00032876,5]
[362041487,1747947040087,-420.0,0.00032876,5]
[362041489,1747947040096,-420.0,0.00032876,5]
[362041491,1747947040105,-420.0,0.00032876,5]
[362041492,1747947040115,-420.0,0.00032876,5]
[362041493,1747947040124,-420.0,0.00032876,5]
[362041494,1747947040134,-420.0,0.00032876,5]
[362041495,1747947040144,-420.0,0.00032876,5]
[362041496,1747947040154,-420.0,0.00032876,5]
[362041497,1747947040163,-420.0,0.00032876,5]
[362041498,1747947040173,-420.0,0.00032876,5]
[362041499,1747947040183,-420.0,0.00032876,5]
[362041500,1747947040192,-420.0,0.00032876,5]
[362041501,1747947040202,-436.14,0.00032876,5]
[362041502,1747947040211,-420.0,0.00032876,5]
[362041503,1747947040220,-420.0,0.00032876,5]
[362041504,1747947040230,-323.78123161,0.00032876,5]
[362041505,1747947040240,-420.0,0.00032876,5]
[362041506,1747947040249,-420.0,0.00032876,5]
[362041507,1747947040259,-420.0,0.00032876,5]
[362041508,1747947040268,-420.0,0.00032876,5]
[362041509,1747947040277,-420.0,0.00032876,5]
[362041511,1747947040286,-468.54,0.00032876,5]
[362041513,1747947040295,-420.0,0.00032876,5]
[362041514,1747947040305,-420.0,0.00032876,5]
[362041516,1747947040314,-420.0,0.00032876,5]
[362041518,1747947040323,-420.0,0.00032876,5]
[362041520,1747947040333,-420.0,0.00032876,5]
[362041522,1747947040343,-420.0,0.00032876,5]
[362041524,1747947040352,-420.0,0.00032876,5]
[362041526,1747947040361,-420.0,0.00032876,5]
[362041528,1747947040371,-420.0,0.00032876,5]
[362041530,1747947040380,-420.0,0.00032876,5]
[362041532,1747947040390,-420.0,0.00032876,5]
[362041534,1747947040399,-558.04497273,0.00032876,5]
[362041536,1747947040409,-219.92197973,0.00032876,5]
[362041540,1747947040437,-200.07802027,0.00032876,5]
[362041542,1747947040447,-420.0,0.00032876,5]
[362041544,1747947040456,-420.0,0.00032876,5]
[362041546,1747947040466,-420.0,0.00032876,5]
[362041548,1747947040475,-420.0,0.00032876,5]
[362041550,1747947040485,-420.0,0.00032876,5]
[362041552,1747947040494,-420.0,0.00032876,5]
[362041554,1747947040504,-420.0,0.00032876,5]
[362041556,1747947040514,-420.0,0.00032876,5]
[362041558,1747947040523,-427.29875481,0.00032876,5]
[362041560,1747947040533,-420.0,0.00032876,5]
[362041562,1747947040543,-420.0,0.00032876,5]
[362041564,1747947040554,-420.0,0.00032876,5]
[362041566,1747947040564,-420.0,0.00032876,5]
[362041602,1747947040894,-420.0,0.00032876,5]
[362041604,1747947040904,-420.0,0.00032876,5]
[362041606,1747947040913,-420.0,0.00032876,5]
[362041608,1747947040923,-420.0,0.00032876,5]
[362041610,1747947040932,-420.0,0.00032876,5]
[362041612,1747947040941,-420.0,0.00032876,5]
[362041614,1747947040951,-420.0,0.00032876,5]
[362041616,1747947040961,-420.0,0.00032876,5]
[362041618,1747947040971,-420.0,0.00032876,5]
[362041620,1747947040980,-420.0,0.00032876,5]
[362041622,1747947040990,-420.0,0.00032876,5]
[362041624,1747947041000,-420.0,0.00032876,5]
[362041626,1747947041009,-420.0,0.00032876,5]
[362041628,1747947041019,-420.0,0.00032876,5]
[362041630,1747947041030,-420.0,0.00032876,5]
[362041632,1747947041041,-420.0,0.00032876,5]
[362041634,1747947041050,-420.0,0.00032876,5]
[362041636,1747947041062,-420.0,0.00032876,5]
[362041638,1747947041072,-193.051177,0.000329,4]
[362041640,1747947041081,-205.33166848,0.000329,27]
[362041642,1747947041091,-173.24,0.00033038,2]
[362041644,1747947041100,-1002.82441177,0.00033049,2]
[362041646,1747947041110,-550.09970111,0.00033049,30]
[362041648,1747947041120,-150.0,0.00033114,2]
[362041650,1747947041131,-500.0,0.00033148,7]
[362041653,1747947041144,-559.3404157,0.00033148,7]
[362041655,1747947041154,-500.0,0.00033148,7]
[362041656,1747947041164,-500.0,0.00033148,7]
[362041659,1747947041174,-420.0,0.00033149,5]
[362041661,1747947041184,-420.0,0.00033149,5]
[362041663,1747947041194,-420.0,0.00033149,5]
[362041664,1747947041203,-420.0,0.00033149,5]
[362041666,1747947041213,-420.0,0.00033149,5]
[362041668,1747947041223,-420.0,0.00033149,5]
[362041670,1747947041233,-420.0,0.00033149,5]
[362041672,1747947041243,-420.0,0.00033149,5]
[362041674,1747947041253,-420.0,0.00033149,5]
[362041676,1747947041263,-420.0,0.00033149,5]
[362041678,1747947041273,-420.0,0.00033149,5]
[362041680,1747947041282,-420.0,0.00033149,5]
[362041682,1747947041292,-420.0,0.00033149,5]
[362041684,1747947041302,-420.0,0.00033149,5]
[362041686,1747947041311,-420.0,0.00033149,5]
[362041688,1747947041321,-420.0,0.00033149,5]
[362041690,1747947041331,-420.0,0.00033149,5]
[362041692,1747947041340,-420.0,0.00033149,5]
[362041694,1747947041350,-420.0,0.00033149,5]
[362041696,1747947041359,-420.0,0.00033149,5]
[362041698,1747947041369,-233.91208152,0.00033149,5]
[362041700,1747947041379,-423.92,0.00033149,5]
[362041702,1747947041389,-420.0,0.00033149,5]
[362041704,1747947041399,-420.0,0.00033149,5]
[362041706,1747947041409,-420.0,0.00033149,5]
[362041708,1747947041419,-420.0,0.00033149,5]
[362041710,1747947041429,-420.0,0.00033149,5]
[362041712,1747947041439,-420.0,0.00033149,5]
[362041714,1747947041448,-420.0,0.00033149,5]
[362041716,1747947041458,-420.0,0.00033149,5]
[362041719,1747947041469,-420.0,0.00033149,5]
[362041720,1747947041479,-185.842115,0.00033149,5]
[362041722,1747947041488,-746.02,0.00033149,5]
[362041724,1747947041497,-287.75242008,0.00033149,5]
[362041726,1747947041507,-152.878536,0.00033149,5]
[362041728,1747947041517,-420.0,0.00033149,5]
[362041730,1747947041526,-420.0,0.00033149,5]
[362041732,1747947041538,-420.0,0.00033149,5]
[362041734,1747947041548,-420.0,0.00033149,5]
[362041736,1747947041558,-420.0,0.00033149,5]
[362041738,1747947041568,-151.556146,0.00033149,5]
[362041740,1747947041578,-420.0,0.00033149,5]
[362041742,1747947041587,-420.0,0.00033149,5]
[362041744,1747947041597,-420.0,0.00033149,5]
[362041746,1747947041606,-420.0,0.00033149,5]
[362041748,1747947041616,-420.0,0.00033149,5]
[362041750,1747947041625,-420.0,0.00033149,5]
[362041752,1747947041634,-420.0,0.00033149,5]
[362041754,1747947041644,-420.0,0.00033149,5]
[362041756,1747947041653,-420.0,0.00033149,5]
[362041758,1747947041662,-420.0,0.00033149,5]
[362041760,1747947041672,-420.0,0.00033149,5]
[362041762,1747947041682,-420.0,0.00033149,5]
[362041764,1747947041691,-420.0,0.00033149,5]
[362041766,1747947041700,-420.0,0.00033149,5]
[362041768,1747947041709,-420.0,0.00033149,5]
[362041770,1747947041719,-420.0,0.00033149,5]
[362041772,1747947041728,-420.0,0.00033149,5]
[362041774,1747947041738,-420.0,0.00033149,5]
[362041776,1747947041747,-420.0,0.00033149,5]
[362041778,1747947041757,-420.0,0.00033149,5]
[362041780,1747947041766,-420.0,0.00033149,5]
[362041782,1747947041775,-420.0,0.00033149,5]
[362041784,1747947041785,-420.0,0.00033149,5]
[362041786,1747947041794,-420.0,0.00033149,5]
[362041788,1747947041803,-420.0,0.00033149,5]
[362041790,1747947041813,-420.0,0.00033149,5]
[362041792,1747947041823,-420.0,0.00033149,5]
[362041794,1747947041833,-420.0,0.00033149,5]
[362041796,1747947041841,-420.0,0.00033149,5]
[362041798,1747947041851,-420.0,0.00033149,5]
[362041800,1747947041860,-420.0,0.00033149,5]
[362041802,1747947041869,-420.0,0.00033149,5]
[362041804,1747947041878,-420.0,0.00033149,5]
[362041806,1747947041887,-766.85,0.00033149,5]
[362041808,1747947041897,-1000.0,0.00033149,2]
[362041809,1747947041906,-202.86359625,0.00033149,5]
[362041811,1747947041915,-420.0,0.00033149,5]
[362041814,1747947041925,-1184.04,0.00033149,5]
[362041816,1747947041934,-420.0,0.00033149,5]
[362041817,1747947041943,-453.66,0.00033149,5]
[362041819,1747947041952,-516.67,0.00033149,5]
[362041821,1747947041961,-420.0,0.00033149,5]
[362041823,1747947041971,-420.0,0.00033149,5]
[362041825,1747947041980,-420.0,0.00033149,5]
[362041827,1747947041989,-420.0,0.00033149,5]
[362041829,1747947041998,-420.0,0.00033149,5]
[362041831,1747947042007,-250.0,0.00033149,5]
[362041833,1747947042017,-420.0,0.00033149,5]
[362041835,1747947042027,-420.0,0.00033149,5]
[362041837,1747947042037,-589.37,0.00033149,5]
[362041839,1747947042046,-420.0,0.00033149,5]
[362041841,1747947042056,-420.0,0.00033149,5]
[362041843,1747947042065,-420.0,0.00033149,5]
[362041845,1747947042074,-197.66975739,0.00033149,5]
[362041847,1747947042083,-420.0,0.00033149,5]
[362041849,1747947042093,-420.0,0.00033149,5]
[362041851,1747947042102,-420.0,0.00033149,5]
[362041853,1747947042111,-420.0,0.00033149,5]
[362041855,1747947042121,-286.93322613,0.00033149,5]
[362041858,1747947042132,-420.0,0.00033149,5]
[362041860,1747947042144,-420.0,0.00033149,5]
[362041862,1747947042154,-1681.95,0.00033149,5]
[362041864,1747947042163,-1788.22,0.00033149,5]
[362041866,1747947042173,-420.0,0.00033149,5]
[362041868,1747947042183,-420.0,0.00033149,5]
[362041870,1747947042193,-528.93,0.00033149,5]
[362041872,1747947042202,-1551.78,0.00033149,5]
[362041874,1747947042214,-420.0,0.00033149,5]
[362041876,1747947042223,-420.0,0.00033149,5]
[362041878,1747947042233,-420.0,0.00033149,5]
[362041880,1747947042242,-420.0,0.00033149,5]
[362041882,1747947042251,-420.0,0.00033149,5]
[362041884,1747947042261,-420.0,0.00033149,5]
[362041886,1747947042270,-420.0,0.00033149,5]
[362041888,1747947042279,-420.0,0.00033149,5]
[362041890,1747947042289,-420.0,0.00033149,5]
[362041892,1747947042299,-420.0,0.00033149,5]
[362041894,1747947042308,-420.0,0.00033149,5]
[362041896,1747947042317,-1225.96,0.00033149,5]
[362041898,1747947042326,-420.0,0.00033149,5]
[362041900,1747947042336,-420.0,0.00033149,5]
[362041902,1747947042345,-420.0,0.00033149,5]
[362041904,1747947042354,-420.0,0.00033149,5]
[362041905,1747947042363,-420.0,0.00033149,5]
[362041907,1747947042372,-420.0,0.00033149,5]
[362041910,1747947042383,-420.0,0.00033149,5]
[362041912,1747947042393,-3487.15,0.00033149,5]
[362041913,1747947042402,-420.0,0.00033149,5]
[362041915,1747947042413,-420.0,0.00033149,5]
[362041917,1747947042422,-420.0,0.00033149,5]
[362041919,1747947042431,-420.0,0.00033149,5]
[362041921,1747947042441,-420.0,0.00033149,5]
[362041923,1747947042451,-1165.0,0.00033149,5]
[362041927,1747947042460,-420.0,0.00033149,5]
[362041928,1747947042469,-420.0,0.00033149,5]
[362041930,1747947042478,-420.0,0.00033149,5]
[362041932,1747947042487,-1013.86,0.00033149,5]
[362041934,1747947042496,-420.0,0.00033149,5]
[362041936,1747947042506,-648.28,0.00033149,5]
[362041938,1747947042515,-2770.78,0.00033149,5]
[362041940,1747947042525,-420.0,0.00033149,5]
[362041943,1747947042534,-420.0,0.00033149,5]